{"text_format":"2","workbook":"xlsx","n_sheets":2,"sheets":["Лист1","Лист2"],"not_rendered":{"charts":0,"images":0,"macros":0,"external_links":0,"defined_names":0,"comments":0,"pivot_tables":0},"unopened":[],"bounds":{"document_bytes":16777216,"sheet_cells":100000,"run_cost":"one","rows_first":2000,"rows_last":500,"rows_between":2000,"halvings":0,"cell_chars":16384,"cell_head_chars":4096},"cells_cut":0,"cells_raw":0,"read":"whole","date_system":"1900"}

{"sheet":"Лист1","index":0,"n_rows":133,"n_cols":6,"rows_kept":133,"cut":false,"hidden":false,"merged":[]}
["Название модели лодки","Фото лодки",null,"Тип лодки","Стоимость лодки, руб","Количество лодок"]
["Alfastreet 23 Cabin Electric","\\Лодки\\Alfastreet 23 Cabin Electric.jpg",{"$f":"VLOOKUP(D2,Лист2!$A$2:$C$13,3,FALSE)","v":1},"Палубная лодка",1500000,7]
["Alfastreet 23 S Cabin Prestige","\\Лодки\\Alfastreet 23 S Cabin Prestige.jpg",{"$f":"VLOOKUP(D3,Лист2!$A$2:$C$13,3,FALSE)","v":1},"Палубная лодка",1700000,5]
["Axopar 28","\\Лодки\\Axopar 28.png",{"$f":"VLOOKUP(D4,Лист2!$A$2:$C$13,3,FALSE)","v":1},"Палубная лодка",2210040,3]
["BARCO","\\Лодки\\BARCO.jpg",{"$f":"VLOOKUP(D5,Лист2!$A$2:$C$13,3,FALSE)","v":2},"Траулер",106800000,3]
["Baseg Б420П","\\Лодки\\Baseg Б420П.jpg",{"$f":"VLOOKUP(D6,Лист2!$A$2:$C$13,3,FALSE)","v":3},"Катамаран",33300,4]
["Baseg Б470П","\\Лодки\\Baseg Б470П.jpg",{"$f":"VLOOKUP(D7,Лист2!$A$2:$C$13,3,FALSE)","v":3},"Катамаран",39400,3]
["Baseg Драккар 550","\\Лодки\\Baseg Драккар 550.jpg",{"$f":"VLOOKUP(D8,Лист2!$A$2:$C$13,3,FALSE)","v":3},"Катамаран",56400,5]
["Baseg К-6","\\Лодки\\Baseg К-6.jpg",{"$f":"VLOOKUP(D9,Лист2!$A$2:$C$13,3,FALSE)","v":3},"Катамаран",30000,3]
["Baseg Турист 4П","\\Лодки\\Baseg Турист 4П.jpg",{"$f":"VLOOKUP(D10,Лист2!$A$2:$C$13,3,FALSE)","v":3},"Катамаран",30400,1]
["Baseg Турист 6П","\\Лодки\\Baseg Турист 6П.jpg",{"$f":"VLOOKUP(D11,Лист2!$A$2:$C$13,3,FALSE)","v":3},"Катамаран",32700,4]
["Baseg Турист 8П","\\Лодки\\Baseg Турист 8П.jpg",{"$f":"VLOOKUP(D12,Лист2!$A$2:$C$13,3,FALSE)","v":3},"Катамаран",34900,2]
["Bavaria S30 Open","\\Лодки\\Bavaria S30 Open.jpg",{"$f":"VLOOKUP(D13,Лист2!$A$2:$C$13,3,FALSE)","v":4},"Каютный крейсер",8695300,2]
["Bayliner 160 Bowrider","\\Лодки\\Bayliner 160 Bowrider.jpg",{"$f":"VLOOKUP(D14,Лист2!$A$2:$C$13,3,FALSE)","v":5},"Боурайдер",1282829,3]
["Bayliner 170 Bowrider","\\Лодки\\Bayliner 170 Bowrider.jpg",{"$f":"VLOOKUP(D15,Лист2!$A$2:$C$13,3,FALSE)","v":5},"Боурайдер",1621987,4]
["Bayliner VR4 Bowrider","\\Лодки\\Bayliner VR4 Bowrider.jpg",{"$f":"VLOOKUP(D16,Лист2!$A$2:$C$13,3,FALSE)","v":5},"Боурайдер",2086486,5]
["Bayliner VR5 Bowrider","\\Лодки\\Bayliner VR5 Bowrider.jpg",{"$f":"VLOOKUP(D17,Лист2!$A$2:$C$13,3,FALSE)","v":5},"Боурайдер",2374033,3]
["Bayliner VR6 Bowrider","\\Лодки\\Bayliner VR6 Bowrider.jpg",{"$f":"VLOOKUP(D18,Лист2!$A$2:$C$13,3,FALSE)","v":5},"Боурайдер",2831159,3]
["BENETEAU FLYER 6.6 SUNDECK","\\Лодки\\BENETEAU FLYER 6.6 SUNDECK.jpg",{"$f":"VLOOKUP(D19,Лист2!$A$2:$C$13,3,FALSE)","v":1},"Палубная лодка",2577000,2]
["Beneteau Swift Trawler 50 Stock Boat","\\Лодки\\Beneteau Swift Trawler 50 Stock Boat.jpg",{"$f":"VLOOKUP(D20,Лист2!$A$2:$C$13,3,FALSE)","v":2},"Траулер",97900000,3]
["Bennington 2575 QSB","\\Лодки\\Bennington 2575 QSB.jpg",{"$f":"VLOOKUP(D21,Лист2!$A$2:$C$13,3,FALSE)","v":1},"Палубная лодка",1800000,4]
["Chaparral 196 SSi","\\Лодки\\Chaparral 196 SSi.jpg",{"$f":"VLOOKUP(D22,Лист2!$A$2:$C$13,3,FALSE)","v":1},"Палубная лодка",2400000,5]
["Chris-Craft Launch 23","\\Лодки\\Chris-Craft Launch 23.jpg",{"$f":"VLOOKUP(D23,Лист2!$A$2:$C$13,3,FALSE)","v":5},"Боурайдер",9709000,4]
["Chris-Craft Launch 27","\\Лодки\\Chris-Craft Launch 27.jpg",null,"Боурайдер",10007716,3]
["Chris-Craft Launch 30","\\Лодки\\Chris-Craft Launch 30.jpg",null,"Боурайдер",17337719,5]
["CLASSIC 180","\\Лодки\\CLASSIC 180.jpg",null,"Плавучий дом",39000000,3]
["Crownline 18 SS","\\Лодки\\Crownline 18 SS.jpg",null,"Боурайдер",2554635,1]
["Crownline 19 XS","\\Лодки\\Crownline 19 XS.jpg",null,"Боурайдер",2773635,4]
["Crownline 205 SS","\\Лодки\\Crownline 205 SS.jpg",null,"Боурайдер",3138635,2]
["Crownline 215 SS","\\Лодки\\Crownline 215 SS.jpg",null,"Боурайдер",3503635,9]
["Crownline 225 SS","\\Лодки\\Crownline 225 SS.jpg",null,"Боурайдер",3205211,7]
["Crownline 235 SS","\\Лодки\\Crownline 235 SS.jpg",null,"Боурайдер",4671635,5]
["Crownline 264 CR","\\Лодки\\Crownline 264 CR.jpg",null,"Каютный крейсер",7810635,2]
["Crownline 265 SS","\\Лодки\\Crownline 265 SS.jpg",null,"Боурайдер",3478815,2]
["Crownline 266 SC","\\Лодки\\Crownline 266 SC.jpg",null,"Каютный крейсер",8215420,2]
["Crownline 286 SC","\\Лодки\\Crownline 286 SC.jpg",null,"Каютный крейсер",11461000,1]
["Crownline 294 CR","\\Лодки\\Crownline 294 CR.jpg",null,"Каютный крейсер",14599635,9]
["Crownline E 235 XS","\\Лодки\\Crownline E 235 XS.jpg",null,"Боурайдер",4744635,8]
["Crownline E 275 XS","\\Лодки\\Crownline E 275 XS.jpg",null,"Боурайдер",3503854,7]
["Crownline E 285 XS","\\Лодки\\Crownline E 285 XS.jpg",null,"Боурайдер",2984751,7]
["CRUISE 115","\\Лодки\\CRUISE 115.jpg",null,"Плавучий дом",10000000,7]
["CRUISE 140","\\Лодки\\CRUISE 140.jpg",null,"Плавучий дом",30000000,9]
["CRUISE 165","\\Лодки\\CRUISE 165.jpg",null,"Плавучий дом",54000000,8]
["CRUISE 80","\\Лодки\\CRUISE 80.jpg",null,"Плавучий дом",5000000,7]
["Element E16","\\Лодки\\Element E16.jpg",null,"Палубная лодка",2990000,6]
["Evo 40","\\Лодки\\Evo 40.jpg",null,"Плавучий дом",70000000,1]
["Evo 50","\\Лодки\\Evo 50.jpg",null,"Плавучий дом",84000000,1]
["EVO YACHTS EVO 43","\\Лодки\\EVO YACHTS EVO 43.jpg",null,"Палубная лодка",3560000,1]
["Evolution 65","\\Лодки\\Evolution 65.jpg",null,"Плавучий дом",72000000,1]
["FERRETTI 450","\\Лодки\\FERRETTI 450.jpg",null,"Моторная яхта",126380000,5]
["FERRETTI 670","\\Лодки\\FERRETTI 670.jpg",null,"Моторная яхта",212710000,4]
["Finnmaster Husky R5","\\Лодки\\Finnmaster Husky R5.png",null,"Боурайдер",3446549,3]
["Finnmaster Husky R6","\\Лодки\\Finnmaster Husky R6.png",null,"Боурайдер",896367,5]
["Finnmaster Husky R7","\\Лодки\\Finnmaster Husky R7.png",null,"Боурайдер",3950687,3]
["Finnmaster S6","\\Лодки\\Finnmaster S6.jpg",null,"Боурайдер",795116,1]
["Finnmaster T8","\\Лодки\\Finnmaster T8.png",null,"Каютный крейсер",10869700,4]
["FISHER 90","\\Лодки\\FISHER 90.jpg",null,"Плавучий дом",6000000,2]
["Four Winns HD240 OB","\\Лодки\\Four Winns HD240 OB.jpg",null,"Палубная лодка",1455000,9]
["Four Winns HD270","\\Лодки\\Four Winns HD270.jpg",null,"Палубная лодка",3345000,7]
["Four Winns Horizon 290 OB","\\Лодки\\Four Winns Horizon 290 OB.png",null,"Боурайдер",16285643,5]
["Four Winns Horizon 350","\\Лодки\\Four Winns Horizon 350.jpg",null,"Боурайдер",25423491,2]
["Four Winns Horizon 350 OB","\\Лодки\\Four Winns Horizon 350 OB.jpg",null,"Каютный крейсер",25839883,2]
["Four Winns Vista 255","\\Лодки\\Four Winns Vista 255.jpg",null,"Каютный крейсер",11412820,2]
["Four Winns Vista 255 OB","\\Лодки\\Four Winns Vista 255 OB.jpg",null,"Каютный крейсер",10686689,1]
["FOUR WINNSHD 240 OB","\\Лодки\\FOUR WINNSHD 240 OB.jpg",null,"Палубная лодка",3955454,9]
["FreeDom 40","\\Лодки\\FreeDom 40.jpg",null,"Плавучий дом",86000000,8]
["FreeDom 50","\\Лодки\\FreeDom 50.jpg",null,"Плавучий дом",95000000,7]
["FUTURA 180","\\Лодки\\FUTURA 180.jpg",null,"Плавучий дом",45000000,7]
["HUNTERBOAT 335","\\Лодки\\HUNTERBOAT 335.png",null,"Рыбацкая лодка",4800,7]
["Invictus 240FX","\\Лодки\\Invictus 240FX.jpg",null,"Палубная лодка",4102000,9]
["Invictus 280 GT","\\Лодки\\Invictus 280 GT.jpg",null,"Палубная лодка",900000,8]
["Invictus Invictus 270 FX","\\Лодки\\Invictus Invictus 270 FX.jpg",null,"Палубная лодка",3500000,7]
["Jeanneau Cap Camarat 10.5 WA","\\Лодки\\Jeanneau Cap Camarat 10.5 WA.jpg",null,"Палубная лодка",2150000,5]
["Leader Компакт 265","\\Лодки\\Leader Компакт 265.jpg",null,"Рыбацкая лодка",8200,4]
["My Way","\\Лодки\\My Way.jpg",null,"Траулер",266110000,3]
["NewStyle-432","\\Лодки\\NewStyle-432.jpg",null,"Лодка с центральной консолью",247700,5]
["ONYX 87","\\Лодки\\ONYX 87.jpg",null,"Траулер",258100000,3]
["Polar Princess","\\Лодки\\Polar Princess.jpg",null,"Траулер",111695000,1]
["Sea Ray 310 SLX","\\Лодки\\Sea Ray 310 SLX.jpg",null,"Палубная лодка",4552130,4]
["Sea-Doo GTI 130 2021","\\Лодки\\Sea-Doo GTI 130 2021.png",null,"Водный скутер",1068000,2]
["Sea-Doo GTI 90 2021","\\Лодки\\Sea-Doo GTI 90 2021.png",null,"Водный скутер",977000,9]
["Sea-Doo GTI SE 170 2021","\\Лодки\\Sea-Doo GTI SE 170 2021.png",null,"Водный скутер",1246000,7]
["Sea-Doo GTR 230 2021","\\Лодки\\Sea-Doo GTR 230 2021.png",null,"Водный скутер",1381000,5]
["Sea-Doo GTX 170 2021","\\Лодки\\Sea-Doo GTX 170 2021.png",null,"Водный скутер",1332000,2]
["Sea-Doo RXP-X  300 2021","\\Лодки\\Sea-Doo RXP-X  300 2021.png",null,"Водный скутер",1720000,2]
["Sea-Doo RXT-XRS 300 С АУДИОСИСТЕМОЙ 2021","\\Лодки\\Sea-Doo RXT-XRS 300 С АУДИОСИСТЕМОЙ 2021.png",null,"Водный скутер",1918000,2]
["Sea-Doo WAKE 170 2021","\\Лодки\\Sea-Doo WAKE 170 2021.jpg",null,"Водный скутер",1270000,1]
["Sea-Doo WAKE PRO 230 С АУДИОСИСТЕМОЙ 2021","\\Лодки\\Sea-Doo WAKE PRO 230 С АУДИОСИСТЕМОЙ 2021.jpg",null,"Водный скутер",1625000,9]
["Starcraft Sls 3","\\Лодки\\Starcraft Sls 3.jpg",null,"Палубная лодка",2355000,8]
["Sun Tracker 20 DLX","\\Лодки\\Sun Tracker 20 DLX.jpg",null,"Палубная лодка",2455870,7]
["Sun Tracker 22","\\Лодки\\Sun Tracker 22.jpg",null,"Палубная лодка",1800000,7]
["Tracker 20","\\Лодки\\Tracker 20.jpg",null,"Палубная лодка",800000,7]
["Аква 3200 СК","\\Лодки\\Аква 3200 СК.png",null,"Рыбацкая лодка",5400,9]
["Апачи 3300 СК","\\Лодки\\Апачи 3300 СК.jpg",null,"Рыбацкая лодка",5500,8]
["Вельбот","\\Лодки\\Вельбот.jpg",null,"Шлюпка",189000,7]
["ВИЗА Вело 2","\\Лодки\\ВИЗА Вело 2.jpg",null,"Катамаран",89000,5]
["ВИЗА Вело 4","\\Лодки\\ВИЗА Вело 4.jpg",null,"Катамаран",103900,4]
["ВИЗА Вело 4К","\\Лодки\\ВИЗА Вело 4К.jpg",null,"Катамаран",115000,3]
["Вольный ветер Арктика 520","\\Лодки\\Вольный ветер Арктика 520.jpg",null,"Катамаран",73300,9]
["Вольный ветер Арктика 600","\\Лодки\\Вольный ветер Арктика 600.jpg",null,"Катамаран",84800,7]
["Вольный ветер Арктика 600 Expedition","\\Лодки\\Вольный ветер Арктика 600 Expedition.jpg",null,"Катамаран",87600,5]
["Вольный ветер Валдай-2","\\Лодки\\Вольный ветер Валдай-2.jpg",null,"Катамаран",43500,3]
["Вольный ветер Валдай-2 Парус","\\Лодки\\Вольный ветер Валдай-2 Парус.jpg",null,"Катамаран",74800,3]
["Вольный ветер Валдай-4","\\Лодки\\Вольный ветер Валдай-4.jpg",null,"Катамаран",51800,2]
["Вольный ветер Валдай-4 Парус","\\Лодки\\Вольный ветер Валдай-4 Парус.jpg",null,"Катамаран",83600,3]
["Вольный ветер Валдай-6","\\Лодки\\Вольный ветер Валдай-6.jpg",null,"Катамаран",64100,4]
["Вольный ветер Валдай-6 Парус","\\Лодки\\Вольный ветер Валдай-6 Парус.jpg",null,"Катамаран",96400,5]
["Вольный ветер Дельта 280","\\Лодки\\Вольный ветер Дельта 280.jpg",null,"Катамаран",22600,4]
["Вольный ветер Дельта 380","\\Лодки\\Вольный ветер Дельта 380.jpg",null,"Катамаран",30800,3]
["Вольный ветер Каскад","\\Лодки\\Вольный ветер Каскад.jpg",null,"Катамаран",54200,5]
["Вольный ветер Север","\\Лодки\\Вольный ветер Север.jpg",null,"Катамаран",59100,3]
["Вольный ветер Таймыр-500","\\Лодки\\Вольный ветер Таймыр-500.jpg",null,"Катамаран",49200,1]
["Вольный ветер Таймыр-600","\\Лодки\\Вольный ветер Таймыр-600.jpg",null,"Катамаран",59100,4]
["Вольный ветер Ямал","\\Лодки\\Вольный ветер Ямал.jpg",null,"Катамаран",40500,2]
["Дельфин-М","\\Лодки\\Дельфин-М.jpg",null,"Рыбацкая лодка",7890,5]
["Кайман N-330","\\Лодки\\Кайман N-330.jpg",null,"Рыбацкая лодка",9200,3]
["КОРВЕТ 500 FISH","\\Лодки\\КОРВЕТ 500 FISH.jpg",null,"Катер",339000,1]
["КОРВЕТ 500A","\\Лодки\\КОРВЕТ 500A.jpg",null,"Катер",407000,4]
["КОРВЕТ 500А FISH","\\Лодки\\КОРВЕТ 500А FISH.jpg",null,"Катер",576400,2]
["КОРВЕТ 580","\\Лодки\\КОРВЕТ 580.jpg",null,"Катер",610500,9]
["Лоцман Профи С-280-М","\\Лодки\\Лоцман Профи С-280-М.jpg",null,"Рыбацкая лодка",12300,7]
["Надувной туристический катамаран","\\Лодки\\Надувной туристический катамаран.jpg",null,"Катамаран",35400,5]
["Парус-Уфа Двина","\\Лодки\\Парус-Уфа Двина.jpg",null,"Катамаран",48990,9]
["Пилот М-330","\\Лодки\\Пилот М-330.jpg",null,"Рыбацкая лодка",7000,2]
["Таймень N-270C","\\Лодки\\Таймень N-270C.png",null,"Рыбацкая лодка",6500,2]
["Хантер 280","\\Лодки\\Хантер 280.jpg",null,"Рыбацкая лодка",14600,2]
["Ял-10","\\Лодки\\Ял-10.jpg",null,"Шлюпка",500000,1]
["Ял-12","\\Лодки\\Ял-12.jpg",null,"Шлюпка",520000,9]
["Ял-14","\\Лодки\\Ял-14.jpg",null,"Шлюпка",650000,8]
["Ял-2","\\Лодки\\Ял-2.jpg",null,"Шлюпка",295000,7]
["Ял-4","\\Лодки\\Ял-4.jpg",null,"Шлюпка",300000,7]
["Ял-6 клинкер","\\Лодки\\Ял-6 клинкер.jpg",null,"Шлюпка",400000,7]
["Ял-6 пластиковый","\\Лодки\\Ял-6 пластиковый.jpg",null,"Шлюпка",320000,9]

{"sheet":"Лист2","index":1,"n_rows":13,"n_cols":3,"rows_kept":13,"cut":false,"hidden":false,"merged":[]}
[]
["Палубная лодка",null,1]
["Траулер",null,2]
["Катамаран",null,3]
["Каютный крейсер",null,4]
["Боурайдер",null,5]
["Плавучий дом",null,6]
["Моторная яхта",null,7]
["Рыбацкая лодка",null,8]
["Лодка с центральной консолью",null,9]
["Водный скутер",null,10]
["Шлюпка",null,11]
["Катер",null,12]